bitfinex-derivatives/quotes_ETHF0:USTF0_20250616
["timestamp","ask_amount","ask_price","bid_price","bid_amount"]
[1750113619260,3.2078,2599.2,2598.4,3.2078]
[1750113619555,3.2078,2599.6,2598.4,3.2078]
[1750113619748,3.2078,2599.6,2599.1,3.2078]
[1750113619948,3.2078,2600.1,2599.5,3.2078]
[1750113620153,3.2078,2600.1,2600.0,0.76893]
[1750113620348,3.2078,2600.7,2599.9,3.2078]
[1750113620649,3.2078,2600.7,2599.5,0.00577812]
[1750113621160,3.28470237,2600.7,2600.6,0.76875]
[1750113622159,3.2078,2601.5,2600.6,3.2078]
[1750113622457,3.2078,2601.5,2601.0,0.01788725]
[1750113622661,3.2078,2601.2,2601.0,0.01788725]
[1750113622849,3.2078,2601.7,2601.0,3.22568725]
[1750113623154,3.2078,2602.0,2601.7,0.76841]
[1750113623361,3.2078,2602.0,2601.7,44.322]
[1750113623960,3.2078,2602.0,2601.8,0.79553412]
[1750113624156,3.2078,2602.0,2601.8,0.02713412]
[1750113624655,3.2078,2603.1,2601.9,3.24418099]
[1750113624852,3.28463147,2603.1,2602.6,0.76815]
[1750113625052,0.07683147,2603.1,2602.8,0.04562786]
[1750113625453,0.07683147,2603.1,2603.0,0.76805]
[1750113626159,0.07683147,2603.1,2603.0,0.81367786]
[1750113626652,0.07683147,2603.1,2603.0,0.82292473]
[1750113627057,1.47e-06,2603.1,2603.0,0.82292473]
[1750113627259,1.47e-06,2603.1,2603.0,45.12892473]
[1750113627654,1.47e-06,2603.1,2603.0,45.13817825]
[1750113628255,1.47e-06,2603.1,2603.0,0.83217825]
[1750113628659,1.47e-06,2603.1,2603.0,0.07338177]
[1750113628958,5.00000147,2603.1,2603.0,0.07338177]
[1750113629363,5.0,2603.1,2603.0,0.07338177]
[1750113629556,5.0,2603.1,2602.6,44.291]
[1750113629765,3.97593,2602.7,2602.6,44.291]
[1750113629957,3.97594,2602.7,2601.8,47.4988]
[1750113630265,0.76822,2602.5,2601.9,0.76836]
[1750113630459,0.76818,2602.6,2602.0,0.76833]
[1750113630660,3.2078,2603.1,2602.6,0.76816]
[1750113630861,0.76808,2602.9,2602.4,0.78671881]
[1750113631163,3.2078,2603.1,2602.4,0.01850881]
[1750113631358,3.97584,2603.1,2602.4,0.78672881]
[1750113631562,3.2078,2603.1,2602.4,0.01850881]
[1750113631863,3.2078,2603.1,2602.7,0.02776233]
[1750113632063,0.76805,2603.0,2602.7,0.02776233]
[1750113632261,3.2078,2603.1,2602.7,0.02776233]
[1750113632757,3.2078,2603.1,2602.9,0.03701585]
[1750113632962,3.2078,2603.0,2602.2,0.00576602]
[1750113633258,0.76824,2602.4,2602.2,0.00576602]
[1750113633458,0.76825,2602.3,2602.2,0.00576602]
[1750113633659,3.97605,2602.3,2602.2,0.00576602]
[1750113633861,8.97605,2602.3,2602.2,0.00576602]
[1750113634367,0.76841,2601.8,2601.2,44.282]
[1750113634564,0.76841,2601.8,2601.2,47.6806]
[1750113634764,0.76839,2601.9,2601.5,0.0184879]
[1750113634966,0.76818,2602.6,2601.8,3.2078]
[1750113635168,3.2078,2602.7,2601.9,3.3986]
[1750113635464,3.2078,2602.4,2602.0,0.00576602]
[1750113635769,0.7498321,2602.1,2602.0,0.00576602]
[1750113635959,3.2078,2602.4,2602.0,0.00576602]
[1750113636772,0.00575314,2602.6,2602.0,3.21356602]
[1750113636963,3.2078,2602.4,2602.2,0.0184879]
[1750113637269,0.76856,2601.3,2601.2,44.282]
[1750113637569,3.2078,2601.3,2599.9,3.2078]
[1750113637771,3.2078,2600.8,2600.0,3.3672]
[1750113637960,3.2078,2600.8,2600.2,3.2078]
[1750113638472,3.21356602,2600.8,2600.2,0.00576602]
[1750113638765,0.76887,2600.3,2600.2,0.00576602]
[1750113638971,0.76885,2600.4,2600.2,0.02426182]
[1750113639269,3.4926,2600.7,2600.2,0.02426182]
[1750113639569,3.21356602,2600.8,2600.2,0.02426182]
[1750113639772,3.2078,2601.6,2601.1,0.76863]
[1750113639969,0.76854,2601.4,2601.3,0.02778135]
[1750113640163,3.2078,2601.6,2601.3,0.02778135]
[1750113640359,0.76854,2601.4,2601.3,0.02778135]
[1750113640761,0.76854,2601.4,2600.6,44.278]
[1750113640762,0.76858,2601.3,2601.1,0.00576602]
[1750113641068,0.7686,2601.2,2601.1,0.00576602]
[1750113641265,5.0,2601.2,2600.6,44.278]
[1750113641568,0.76871,2600.9,2600.6,44.278]
[1750113641765,3.2078,2601.0,2600.6,44.278]
[1750113641959,3.2078,2600.7,2600.6,44.278]
[1750113642163,3.18922755,2600.7,2600.6,44.278]
[1750113642667,3.18922755,2600.7,2600.6,45.04677]
[1750113642869,3.2078,2601.4,2600.6,49.278]
[1750113643072,3.2078,2601.4,2600.6,44.278]
[1750113643264,3.2078,2601.4,2600.7,3.2078]
[1750113643463,0.00575314,2601.6,2601.5,0.76851]
[1750113643662,0.00575314,2601.6,2601.5,3.97631]
[1750113643969,0.00575314,2601.6,2600.8,3.5349]
[1750113643970,0.7499889,2601.4,2600.8,44.281]
[1750113644272,3.2078,2601.1,2600.8,44.281]
[1750113644471,3.2078,2601.1,2599.7,1.92259]
[1750113644775,8.84128,2602.4,2599.6,3.2078]
[1750113644776,0.00576602,2601.0,2600.5,5.12982]
[1750113645074,3.4225,2601.8,2601.2,0.76857]
[1750113645262,3.4225,2601.8,2601.4,0.76852]
[1750113645460,3.4225,2601.8,2601.1,44.281]
[1750113645461,3.4225,2601.8,2601.6,0.76846]
[1750113645658,3.4225,2601.8,2601.1,44.281]
[1750113645874,3.2078,2601.5,2601.4,0.76854]
[1750113646172,3.2078,2601.5,2601.4,0.01856029]
[1750113646574,3.2078,2601.5,2601.4,0.78710029]
[1750113647170,3.2078,2601.5,2601.4,0.79637503]
[1750113647472,3.97631,2601.5,2601.4,0.02783503]
[1750113647663,3.2078,2601.5,2601.4,0.02783503]
[1750113647975,3.2078,2602.2,2601.4,0.02783503]
[1750113648266,3.2078,2602.6,2601.8,1.92105]
[1750113648473,3.2078,2602.0,2601.9,0.76839]
[1750113649068,8.2078,2602.0,2601.9,0.04638451]
[1750113649273,8.2078,2602.0,2601.2,0.00576602]
[1750113649274,9.34760531,2602.0,2601.2,0.00576602]
[1750113649574,3.2078,2601.3,2601.2,0.77436602]
[1750113649871,3.2078,2601.6,2601.4,0.76853]
[1750113650173,4.53712168,2601.5,2601.4,0.76853]
[1750113650368,4.53712168,2601.5,2601.2,0.00576602]
[1750113650569,3.2078,2601.3,2601.2,0.77436602]
[1750113650972,3.2078,2601.3,2601.2,0.00576602]
[1750113651171,3.2078,2601.3,2601.2,0.77436602]
[1750113651472,3.2078,2601.3,2601.2,0.7929155]
[1750113651774,4.34875858,2601.3,2601.2,0.0243155]
[1750113651976,4.34875858,2601.3,2601.2,0.03359024]
[1750113652176,4.34875858,2601.3,2601.2,0.80219024]
[1750113652177,4.34892922,2601.3,2601.2,0.80219024]
[1750113652377,4.34892922,2601.3,2601.2,0.03359024]
[1750113652674,5.11749922,2601.3,2601.2,0.03359024]
[1750113652870,4.34892922,2601.3,2601.2,0.03359024]
[1750113653075,5.11749922,2601.3,2601.2,0.03359024]
[1750113653475,4.34892922,2601.3,2601.2,0.04285458]
[1750113653674,3.2078,2601.3,2601.2,0.04285458]
[1750113653872,5.11517213,2601.3,2601.2,0.04285458]
[1750113654072,9.34660213,2601.3,2599.9,3.446]
[1750113654273,2.19285064,2601.4,2599.7,44.282]
[1750113654274,3.2078,2600.2,2599.7,44.282]
[1750113654472,1.92193,2600.7,2599.7,44.282]
[1750113654473,3.2078,2600.7,2599.7,44.282]
[1750113654672,3.2078,2601.0,2600.4,3.2078]
[1750113654873,3.2078,2601.0,2599.9,3.84493]
[1750113654874,3.2078,2601.5,2600.7,1.92187]
[1750113655070,0.00576602,2601.4,2601.2,0.76859]
[1750113655278,0.00576602,2601.4,2600.8,47.49556602]
[1750113655479,0.00576602,2601.4,2601.1,0.01852868]
[1750113656175,0.00576602,2601.4,2601.3,0.76857]
[1750113656380,3.2078,2602.1,2601.1,5.01852868]
[1750113656579,3.2078,2602.4,2602.1,0.76832]
[1750113656776,3.2078,2602.7,2601.7,8.8696]
[1750113657080,3.2078,2602.4,2601.7,3.7407]
[1750113657276,3.2078,2602.4,2602.0,0.76835]
[1750113657478,6.5768,2602.7,2601.8,3.21356602]
[1750113657678,1.13331354,2602.6,2602.2,0.03705736]
[1750113657879,3.2078,2602.3,2602.2,0.80535736]
[1750113658076,5.10938354,2602.3,2602.2,0.03705736]
[1750113658280,9.34111354,2602.3,2601.8,0.00576602]
[1750113658479,3.2078,2602.0,2601.8,0.00576602]
[1750113658778,1.13331354,2601.9,2601.8,0.00576602]
[1750113659175,4.65621354,2601.9,2601.8,0.00576602]
[1750113659381,0.76847,2601.7,2601.0,3.7368]
[1750113659580,1.13331354,2601.6,2601.0,3.7368]
[1750113659877,1.13331354,2601.6,2601.3,0.01846753]
[1750113660080,3.2078,2601.4,2601.3,0.01846753]
[1750113660383,1.10564282,2601.4,2601.3,0.76857]
[1750113660579,2.19285064,2601.4,2600.3,5.55911]
[1750113660780,5.40944485,2601.5,2600.4,6.9446]
[1750113660991,0.76883,2600.5,2600.0,45.04694]
[1750113661178,3.2078,2600.5,2600.0,44.278]
[1750113661373,3.97671,2600.2,2600.0,44.278]
[1750113661687,3.2078,2600.9,2600.8,0.76872]
[1750113661884,8.2078,2600.9,2600.0,44.278]
[1750113662091,3.2078,2600.4,2600.2,0.76888]
[1750113662387,3.2078,2600.4,2600.0,44.278]
[1750113662792,3.2078,2600.4,2600.3,0.76886]
[1750113662983,2.20164485,2601.3,2601.0,0.76866]
[1750113663180,0.76861,2601.2,2600.3,1.92217]
[1750113663372,3.4475,2601.4,2601.0,0.76866]
[1750113663583,5.40944485,2601.6,2601.0,0.76866]
[1750113663883,5.40944485,2601.6,2601.0,0.79626957]
[1750113663884,3.2078,2601.6,2601.0,0.79626957]
[1750113664086,2.20164485,2602.1,2601.0,49.31260957]
[1750113664381,6.09951312,2602.4,2601.9,3.2078]
[1750113664382,3.97606,2602.4,2601.9,3.2078]
[1750113664588,3.97606,2602.4,2601.2,0.76858]
[1750113664589,0.76842,2601.9,2601.2,0.76858]
[1750113664784,0.76842,2601.9,2601.3,0.76856]
[1750113664984,3.5638,2601.8,2601.6,0.03681276]
[1750113665306,3.2078,2601.7,2600.4,3.2078]
[1750113665580,3.2078,2601.7,2599.2,49.97592]
[1750113665581,5.1296,2600.8,2599.9,3.2078]
[1750113665791,0.76887,2600.3,2599.9,0.76897]
[1750113666081,9.63948297,2601.1,2599.5,47.951]
[1750113666082,0.76896,2600.0,2599.8,0.00576602]
[1750113666289,2.20912319,2600.4,2600.3,0.76886]
[1750113666487,2.20912319,2600.4,2599.8,0.00576602]
[1750113666488,0.76889,2600.2,2599.8,0.00576602]
[1750113666676,0.00576602,2600.4,2599.8,0.00576602]
[1750113666880,3.2078,2600.3,2599.8,0.00576602]
[1750113667183,3.2078,2600.3,2600.0,0.78096548]
[1750113667380,0.00576602,2600.4,2600.0,0.01203548]
[1750113667884,0.00576602,2600.4,2600.3,0.76886]
[1750113668091,8.21356602,2600.4,2599.8,0.00576602]
[1750113668394,0.76897,2600.0,2599.8,0.00576602]
[1750113668685,0.00576602,2600.4,2600.3,0.76886]
[1750113668996,6.02e-06,2600.4,2600.3,3.97666]
[1750113669184,6.02e-06,2600.4,2600.3,8.97666]
[1750113669889,6.02e-06,2600.4,2600.3,5.76886]
[1750113670291,6.02e-06,2600.4,2600.3,8.97666]
[1750113670684,3.4484,2601.8,2600.3,54.3128]
[1750113670889,3.4484,2601.8,2601.3,0.76855]
[1750113671185,3.4484,2601.8,2600.7,1.92181]
[1750113671186,3.4484,2601.8,2601.1,44.289]
[1750113671489,3.2078,2602.0,2601.1,44.289]
[1750113671695,0.76848,2601.6,2601.5,0.21311265]
[1750113672192,4.21688,2601.6,2601.5,0.21311265]
[1750113672387,0.00576602,2601.8,2601.5,0.98160265]
[1750113672688,3.2078,2601.7,2601.3,3.21356602]
[1750113672988,7.42467,2601.7,2601.3,3.21356602]
[1750113673290,0.76848,2601.6,2601.3,0.00576602]
[1750113673495,3.2078,2601.7,2600.5,1.92202]
[1750113673790,0.00576602,2601.8,2601.0,1.92165]
[1750113673983,1.9202,2603.0,2601.5,9.63948297]
[1750113674299,3.2078,2602.1,2601.6,44.286]
[1750113674485,3.2078,2601.8,2601.6,44.286]
[1750113674682,3.4138,2602.0,2601.6,44.286]
[1750113674983,3.2078,2601.7,2601.5,0.00576602]
[1750113675281,0.00576602,2602.1,2601.5,0.00576602]
[1750113675282,3.4138,2601.9,2601.5,0.00576602]
[1750113675489,0.00576602,2602.1,2601.9,0.76838]
[1750113675691,0.00576602,2602.1,2602.0,0.76836]
[1750113675880,3.4138,2602.8,2601.9,5.0]
[1750113676190,3.4138,2602.8,2602.2,0.76829]
[1750113676391,3.4138,2602.8,2602.4,0.76824]
[1750113676786,3.4138,2602.8,2602.4,0.76823]
[1750113676988,3.2078,2602.7,2602.0,4.18575]
[1750113677291,3.4138,2602.8,2601.6,0.76848]
[1750113677292,3.2078,2602.2,2601.6,0.76848]
[1750113677487,3.2078,2602.2,2601.5,0.00576602]
[1750113677488,0.76848,2601.6,2601.5,0.00576602]
[1750113677696,0.76846,2601.7,2601.5,0.00576602]
[1750113677993,3.3764,2601.6,2601.5,0.00576602]
[1750113678288,3.3764,2601.6,2600.5,47.4898]
[1750113678494,3.2078,2601.1,2600.6,0.76876]
[1750113678785,3.2078,2601.1,2600.7,0.76874]
[1750113678988,3.2078,2601.1,2600.5,47.4898]
[1750113679392,3.2078,2601.5,2600.5,47.49556602]
[1750113679584,3.2078,2601.5,2601.1,0.76861]
[1750113679786,3.2078,2601.5,2601.2,0.7686]
[1750113679989,3.3764,2601.6,2601.4,0.76852]
[1750113680289,3.3764,2601.6,2601.5,0.15463821]
[1750113680692,8.3764,2601.6,2600.5,44.28776602]
[1750113680889,3.2078,2600.9,2600.6,0.76875]
[1750113681092,3.2078,2600.9,2600.5,44.28776602]
[1750113681093,3.2078,2600.9,2600.5,45.05655602]
[1750113681396,3.2078,2600.6,2600.5,44.28776602]
[1750113681694,3.2078,2601.5,2601.3,0.76855]
[1750113681890,0.00576602,2601.8,2601.7,0.76845]
[1750113682284,9.63948297,2603.2,2601.6,3.7022]
[1750113682285,3.8749,2602.6,2601.6,3.7022]
[1750113682593,3.8749,2602.6,2601.5,44.28]
[1750113682594,3.2078,2602.1,2601.5,44.28]
[1750113682799,3.2078,2601.8,2601.7,0.76845]
[1750113682991,3.2078,2601.8,2601.6,0.76847]
[1750113683289,3.2078,2601.8,2601.5,45.04849]
[1750113683489,3.8557,2602.0,2601.8,0.7684]
[1750113683688,3.8557,2602.0,2601.5,44.28]
[1750113683891,3.2078,2601.8,2601.4,0.00576602]
[1750113684085,3.8557,2602.0,2601.4,0.00576602]
[1750113684086,3.2078,2601.5,2601.4,0.00576602]
[1750113684393,0.7687,2600.9,2600.2,44.28]
[1750113684593,3.2078,2600.7,2600.2,44.28]
[1750113684791,3.2078,2600.3,2600.2,44.28]
[1750113685095,3.2078,2600.3,2599.3,44.278]
[1750113685096,0.76905,2599.7,2599.3,44.278]
[1750113685390,0.00576602,2599.8,2599.3,44.278]
[1750113685799,3.21356602,2599.8,2599.3,44.278]
[1750113685994,0.00576602,2599.8,2599.7,0.76904]
[1750113686189,0.00576602,2599.8,2599.4,3.8876]
[1750113686389,3.2078,2599.7,2599.3,45.04714]
[1750113686598,4.40929,2599.6,2599.2,0.00576602]
[1750113686792,3.2078,2599.4,2599.2,0.00576602]
[1750113686988,4.40936,2599.3,2599.2,0.00576602]
[1750113687292,3.6402,2599.3,2598.5,44.278]
[1750113687597,0.76934,2598.7,2598.6,0.07696451]
[1750113687798,3.2078,2598.9,2598.7,0.76932]
[1750113687994,3.2078,2599.5,2598.6,0.07696451]
[1750113688296,3.2078,2599.7,2598.8,0.00576602]
[1750113688494,0.76909,2599.6,2598.8,0.00576602]
[1750113688698,3.6402,2599.6,2598.8,0.00576602]
[1750113689005,3.2078,2600.4,2599.7,0.76904]
[1750113689299,3.2078,2600.4,2599.7,8.2078]
[1750113689499,3.7533,2600.6,2600.1,3.2078]
[1750113689694,3.2078,2600.7,2600.1,3.2078]
[1750113689900,3.7533,2601.2,2600.5,1.92202]
[1750113690203,6.9512,2601.5,2600.4,3.2078]
[1750113690204,3.2078,2601.5,2601.3,0.76855]
[1750113690405,3.2078,2601.5,2600.8,3.2078]
[1750113690591,3.2078,2601.2,2601.0,0.76865]
[1750113690792,3.2078,2601.2,2600.8,3.2078]
[1750113690996,3.7533,2601.1,2600.6,0.00576602]
[1750113691192,3.2078,2600.9,2600.6,0.00576602]
[1750113691506,3.2078,2601.0,2600.9,0.76869]
[1750113691803,3.7533,2601.6,2600.9,3.2078]
[1750113691994,3.21356602,2601.7,2600.8,44.29]
[1750113692189,3.2078,2601.1,2600.6,0.00576602]
[1750113692400,3.2078,2600.8,2600.6,0.00576602]
[1750113692705,3.2078,2601.2,2600.6,0.00576602]
[1750113692895,3.2078,2600.9,2600.6,0.00576602]
[1750113693091,3.92,2601.1,2600.6,0.00576602]
[1750113693292,3.21356602,2601.7,2600.6,0.00576602]
[1750113693497,3.2078,2601.3,2600.8,0.7687]
[1750113693800,3.2078,2601.0,2600.7,0.76873]
[1750113693994,3.2078,2601.0,2600.6,0.00576602]
[1750113694201,3.97655,2600.7,2600.6,0.00576602]
[1750113694395,3.2078,2600.7,2600.0,44.29]
[1750113694596,3.2078,2600.3,2600.0,44.29]
[1750113694892,3.92,2600.2,2600.0,44.29]
[1750113695100,4.68891,2600.2,2600.0,44.29]
[1750113695296,0.76892,2600.1,2600.0,44.29]
[1750113695499,3.92,2600.2,2599.8,0.00576602]
[1750113695701,6.8349,2600.0,2599.8,0.00576602]
[1750113695998,0.76898,2599.9,2599.8,0.00576602]
[1750113696202,3.6271,2599.9,2599.1,44.29]
[1750113696402,3.97692,2599.5,2599.1,45.05921]
[1750113696603,3.2078,2599.9,2599.5,0.76908]
[1750113696794,3.6271,2599.8,2599.2,3.2078]
[1750113697001,3.6271,2599.8,2599.1,45.05921]
[1750113697002,3.97691,2599.5,2599.1,45.05921]
[1750113697196,3.2078,2599.5,2599.1,44.29]
[1750113697399,0.00576602,2600.3,2599.8,0.76901]
[1750113697600,3.2078,2601.2,2600.9,0.76867]
[1750113697899,3.2078,2601.2,2600.4,3.2078]
[1750113698101,3.2078,2601.2,2600.6,3.2078]
[1750113698301,7.60342,2601.5,2600.7,3.8516]
[1750113698504,6.8349,2601.5,2601.1,0.76861]
[1750113698708,0.76855,2601.4,2601.0,0.00576602]
[1750113699002,6.8349,2601.5,2601.0,0.00576602]
[1750113699209,3.2078,2601.2,2601.0,0.00576602]
[1750113699406,0.76863,2601.1,2601.0,0.00576602]
[1750113699609,0.76863,2601.1,2600.2,47.5018]
[1750113699610,3.7082,2601.1,2600.2,47.5018]
[1750113699811,3.2078,2600.7,2600.2,44.294]
[1750113700012,0.76885,2600.4,2600.2,44.294]
[1750113700318,4.477,2600.6,2600.2,44.294]
[1750113700608,3.7082,2600.6,2600.2,45.06288]
[1750113700810,3.7082,2600.6,2600.2,44.294]
[1750113701011,0.7687,2600.9,2600.5,0.7688]
[1750113701405,0.76875,2600.7,2600.4,3.2078]
[1750113701707,0.76873,2600.8,2600.5,0.7688]
[1750113701904,3.6129,2600.9,2600.3,6.9074]
[1750113702104,3.6129,2600.9,2600.3,3.6996]
[1750113702304,0.76875,2600.7,2600.3,7.67625]
[1750113702507,3.6129,2600.9,2600.3,4.46845]
[1750113702811,3.6129,2600.9,2600.4,0.76881]
[1750113703015,3.97657,2600.7,2600.4,0.76881]
[1750113703313,3.2078,2600.7,2600.1,0.00576602]
[1750113703607,0.769,2599.9,2599.6,0.76907]
[1750113703815,3.2078,2600.2,2599.7,0.0104089]
[1750113704015,3.6129,2600.6,2599.7,0.0104089]
[1750113704016,6.8207,2600.6,2599.7,0.0104089]
[1750113704405,0.76901,2599.8,2599.7,0.0104089]
[1750113704909,1.92268,2599.6,2598.7,3.2078]
[1750113705109,0.76938,2598.6,2598.3,3.2078]
[1750113705309,3.2078,2598.8,2598.3,3.2078]
[1750113705609,3.2078,2598.8,2598.7,0.76934]
[1750113705808,3.2078,2598.8,2598.4,3.6123]
[1750113705809,3.2078,2598.8,2598.5,0.00576602]
[1750113706206,3.2078,2598.8,2598.7,0.76934]
[1750113706612,86.425,2600.4,2598.7,0.76934]
[1750113706613,3.2078,2599.8,2598.7,5.0]
[1750113706812,3.2078,2599.8,2599.7,0.76904]
[1750113707118,3.6845,2600.3,2600.1,0.76892]
[1750113707311,8.6845,2600.3,2599.5,0.76908]
[1750113707516,3.2078,2599.7,2599.3,44.295]
[1750113707712,3.2078,2599.7,2599.1,3.2078]
[1750113707713,0.76914,2599.4,2599.1,3.2078]
[1750113708012,0.76922,2599.1,2599.0,0.00576602]
[1750113708405,3.2078,2599.6,2599.0,0.00576602]
[1750113708608,9.63948297,2600.4,2599.0,0.00576602]
[1750113708609,3.2078,2599.9,2599.8,0.76901]
[1750113708804,3.2078,2599.9,2599.5,44.299]
[1750113709111,3.97687,2599.6,2599.5,44.299]
[1750113709507,3.6288,2599.8,2599.7,0.76904]
[1750113709807,3.2078,2599.9,2599.5,44.299]
[1750113710314,3.2078,2599.9,2599.8,0.76901]
[1750113710510,3.2078,2599.9,2599.7,0.76903]
[1750113710719,3.2078,2599.9,2599.6,0.76907]
[1750113710919,0.76903,2599.8,2599.5,44.299]
[1750113711214,3.9581,2599.8,2599.7,0.76904]
[1750113711414,3.9581,2599.8,2599.5,44.299]
[1750113711615,3.2078,2599.9,2599.8,0.76901]
[1750113712013,0.00576602,2600.2,2600.1,0.76892]
[1750113712613,0.00576602,2600.2,2599.7,1.92256]
[1750113712614,8.21356602,2600.2,2599.7,0.76903]
[1750113712812,7.1659,2600.1,2599.2,1.92297]
[1750113713119,7.1659,2600.1,2599.6,0.76905]
[1750113713120,3.2078,2599.8,2599.6,0.76905]
[1750113713316,3.2078,2599.8,2599.3,0.76915]
[1750113713515,3.2078,2599.8,2599.5,0.76908]
[1750113713516,3.6276,2599.7,2599.5,0.76908]
[1750113713718,3.2078,2599.6,2599.4,0.76913]
[1750113713914,3.2078,2599.6,2599.5,0.7691]
[1750113714115,3.2078,2599.9,2599.1,3.2078]
[1750113714312,3.2078,2599.9,2599.4,3.2078]
[1750113714619,3.21356602,2600.2,2599.6,1.92263]
[1750113714816,0.00576602,2600.2,2600.1,0.76892]
[1750113715117,0.00576602,2600.2,2599.5,3.5841]
[1750113715310,3.2078,2599.9,2599.5,3.5841]
[1750113715510,3.2078,2599.9,2599.0,43.39886602]
[1750113715511,3.2078,2599.6,2599.0,0.00576602]
[1750113715825,3.2078,2599.1,2597.9,3.2078]
[1750113716122,11.56252297,2599.2,2597.9,3.2078]
[1750113716123,0.76943,2598.4,2597.9,3.2078]
[1750113716325,3.2078,2598.9,2598.8,0.76931]
[1750113716622,3.2078,2599.2,2599.0,0.76924]
[1750113716813,3.2078,2599.2,2598.8,0.00576602]
[1750113717414,0.00576602,2599.4,2598.8,0.00576602]
[1750113717727,0.00576602,2599.4,2599.3,0.76916]
[1750113718419,3.2078,2600.4,2600.0,0.76894]
[1750113718921,3.2078,2600.4,2599.6,44.31]
[1750113719118,3.2078,2600.4,2599.6,47.5178]
[1750113719522,0.00576602,2600.3,2600.2,0.76889]
[1750113719819,0.76892,2600.2,2599.6,44.31]
[1750113720123,3.2078,2600.2,2599.6,44.31]
[1750113720320,0.76899,2599.9,2599.6,44.31]
[1750113720517,3.2078,2599.9,2599.6,44.31]
[1750113720719,0.76904,2599.7,2599.6,44.31]
[1750113721024,1.92268,2599.6,2598.8,44.31276602]
[1750113721223,3.2078,2599.1,2598.8,44.31276602]
[1750113721627,3.2078,2599.1,2599.0,0.76925]
[1750113721822,0.00576602,2600.3,2599.4,0.76913]
[1750113721823,3.2078,2599.5,2599.4,0.76913]
[1750113722325,3.2078,2599.5,2598.8,47.52056602]
[1750113722326,17.84728297,2599.5,2598.8,44.31276602]
[1750113722520,0.76928,2598.9,2598.8,44.31276602]
[1750113722715,0.76928,2598.9,2598.8,0.00576602]
[1750113722923,0.76928,2598.9,2596.8,5.26863352]
[1750113722924,8.806,2598.9,2596.8,5.26863352]
[1750113723117,9.63948297,2597.6,2596.8,3.2078]
[1750113723326,9.63948297,2598.0,2596.8,3.2078]
[1750113723526,3.2078,2598.1,2597.1,3.2078]
[1750113723727,0.76975,2597.3,2597.2,3.8228]
[1750113723923,3.2078,2597.4,2597.0,0.00576602]
[1750113724125,0.76981,2597.1,2597.0,0.00576602]
[1750113724526,8.97761,2597.1,2597.0,0.00576602]
[1750113724732,8.97761,2597.1,2596.0,3.8948]
[1750113724733,8.2078,2597.1,2596.0,3.8228]
[1750113724927,3.2078,2596.7,2596.0,3.8228]
[1750113725134,3.2078,2596.7,2595.9,6.9287]
[1750113725135,12.84728297,2596.4,2595.6,44.312]
[1750113725331,0.77018,2595.9,2595.6,44.312]
[1750113725531,0.77012,2596.1,2595.6,44.312]
[1750113725722,0.77012,2596.1,2595.6,44.31588173]
[1750113725723,3.21357734,2596.1,2595.6,44.31588173]
[1750113725925,0.00577734,2596.1,2596.0,0.77014]
[1750113726130,0.00577734,2596.1,2595.7,7.1517]
[1750113726343,3.21357734,2596.1,2595.9,0.77016]
[1750113726632,3.21357734,2596.1,2595.6,47.52368173]
[1750113726834,3.21357734,2596.1,2595.6,45.08612173]
[1750113727131,3.21357734,2596.1,2595.6,44.31588173]
[1750113727538,3.21357734,2596.1,2596.0,0.77014]
[1750113727837,0.00577734,2596.1,2596.0,0.77014]
[1750113728027,3.21357734,2596.1,2595.6,44.31588173]
[1750113728231,0.00577734,2596.1,2595.6,44.31588173]
[1750113728428,13.61744297,2596.0,2595.6,44.31588173]
[1750113728635,3.891,2595.9,2595.6,44.31588173]
[1750113728934,3.2078,2595.7,2594.7,0.77052]
[1750113729132,9.63948297,2595.3,2594.4,0.77058]
[1750113729331,9.63948297,2594.6,2594.3,3.2078]
[1750113729540,3.891,2595.2,2593.6,3.2078]
[1750113729541,3.2078,2594.7,2593.6,3.2078]
[1750113729743,12.84728297,2595.0,2594.2,3.2078]
[1750113729930,3.2078,2594.7,2593.9,3.2078]
[1750113730134,3.2078,2594.7,2594.6,0.77055]
[1750113730434,0.00577734,2594.9,2594.8,0.77049]
[1750113730836,3.2078,2595.9,2594.8,5.0]
[1750113731033,7.0988,2595.9,2595.3,3.2078]
[1750113731336,7.0988,2595.9,2595.0,3.2078]
[1750113731538,0.77037,2595.3,2595.0,3.2078]
[1750113731733,0.77037,2595.3,2594.6,0.00577734]
[1750113731734,0.77052,2594.7,2594.6,0.00577734]
[1750113731935,9.63948297,2594.7,2594.6,0.00577734]
[1750113732139,12.84728297,2594.7,2594.6,0.00577734]
[1750113732834,16.67758297,2594.7,2594.6,0.00577734]
[1750113733033,16.67758297,2594.7,2593.9,3.2078]
[1750113733034,21.67758297,2594.7,2593.9,3.2078]
[1750113733232,16.67758297,2594.7,2593.9,3.2078]
[1750113733433,3.8303,2594.7,2594.4,3.2078]
[1750113733634,3.2078,2595.3,2594.4,47.5688]
[1750113733938,0.00577734,2595.4,2594.9,3.2078]
[1750113734241,0.00577734,2595.4,2595.3,0.77034]
[1750113734749,0.00577734,2595.4,2595.1,3.2078]
[1750113735045,0.00577734,2595.4,2595.1,3.97819]
[1750113735338,0.00577734,2595.4,2594.5,3.752]
[1750113735339,9.63948297,2595.2,2594.6,0.77053]
[1750113735540,0.77043,2595.0,2594.6,0.77053]
[1750113735748,3.7176,2594.9,2594.4,47.5688]
[1750113735938,9.63948297,2594.8,2593.9,3.2078]
[1750113736137,0.77073,2594.0,2593.9,3.2078]
[1750113736444,0.77073,2594.0,2592.9,44.368]
[1750113736445,5.13456,2594.1,2593.4,3.2078]
[1750113736643,0.00577734,2594.0,2593.9,0.77076]
[1750113736943,0.00577734,2594.0,2593.2,3.2078]
[1750113737139,9.63948297,2593.9,2593.2,3.2078]
[1750113737446,3.2078,2593.3,2591.8,3.2078]
[1750113737643,3.2078,2593.1,2593.0,0.77103]
[1750113737835,3.2078,2593.1,2592.0,44.368]